bitfinex-derivatives/quotes_BTCF0:USTF0_20250402
["timestamp","ask_amount","ask_price","bid_price","bid_amount"]
[1743552298884,0.06294001,85226.0,85225.0,0.1185741]
[1743552300004,0.06794001,85226.0,85225.0,0.1185741]
[1743552300785,0.06794001,85226.0,85225.0,0.1793741]
[1743552301386,0.06794001,85226.0,85225.0,0.1185741]
[1743552303598,0.12894001,85226.0,85225.0,0.1185741]
[1743552304391,0.12894001,85226.0,85225.0,0.2421741]
[1743552307190,0.00624001,85226.0,85225.0,0.2421741]
[1743552307390,0.005,85226.0,85225.0,0.2421741]
[1743552307596,0.00620001,85226.0,85225.0,0.2421741]
[1743552307797,0.00620001,85226.0,85225.0,0.61873833]
[1743552307993,0.005,85226.0,85225.0,0.61873833]
[1743552309701,0.005,85226.0,85225.0,0.49505728]
[1743552310001,0.30284711,85226.0,85225.0,0.36204]
[1743552310195,0.30284711,85226.0,85225.0,0.00124]
[1743552310393,0.30284711,85226.0,85218.0,0.3608]
[1743552310394,0.31284791,85226.0,85223.0,0.26861189]
[1743552310594,0.0609,85225.0,85224.0,0.1173354]
[1743552310789,0.0609,85225.0,85224.0,0.1185354]
[1743552311095,0.25284108,85225.0,85224.0,0.1185354]
[1743552313293,0.12234001,85225.0,85224.0,0.13429729]
[1743552313488,0.0609,85225.0,85224.0,0.25419729]
[1743552313696,0.0639,85225.0,85224.0,0.31699729]
[1743552313993,0.003,85225.0,85224.0,0.34254816]
[1743552315899,0.003,85225.0,85224.0,0.31699729]
[1743552317197,0.003,85225.0,85224.0,0.72459729]
[1743552318304,0.0004,85231.0,85230.0,0.1173272]
[1743552318504,0.0004,85231.0,85230.0,0.1344788]
[1743552318705,0.0004,85231.0,85230.0,0.2521788]
[1743552318906,0.0004,85231.0,85230.0,0.2521806]
[1743552319112,0.118,85242.0,85238.0,0.0586579]
[1743552319301,0.14028739,85245.0,85244.0,0.1173079]
[1743552319607,0.14028739,85245.0,85244.0,0.1344613]
[1743552319608,0.14156739,85245.0,85244.0,0.1344613]
[1743552319805,0.14156739,85245.0,85244.0,0.13445727]
[1743552320304,0.14156739,85245.0,85244.0,0.14629492]
[1743552320503,0.14156739,85245.0,85244.0,0.20779492]
[1743552321004,0.14156739,85245.0,85244.0,0.2215418]
[1743552321602,0.14156739,85245.0,85244.0,0.3415418]
[1743552322907,0.14156739,85245.0,85244.0,0.7491418]
[1743552322908,0.00128,85245.0,85244.0,0.7491418]
[1743552323107,0.0004,85247.0,85246.0,0.1173052]
[1743552323303,0.0004,85247.0,85246.0,0.13445457]
[1743552323609,0.0609,85252.0,85251.0,0.1172983]
[1743552323912,0.14028739,85260.0,85259.0,0.1172873]
[1743552324109,0.1414874,85260.0,85259.0,0.4792873]
[1743552324317,0.0624,85265.0,85262.0,0.1172831]
[1743552324512,0.00160001,85263.0,85262.0,0.1184831]
[1743552325098,0.00160001,85263.0,85262.0,0.2390831]
[1743552328808,0.0004,85263.0,85262.0,0.2390831]
[1743552331421,0.0004,85263.0,85262.0,0.25448055]
[1743552333110,0.0004,85263.0,85262.0,0.2661725]
[1743552333521,0.0004,85263.0,85262.0,0.25448055]
[1743552333720,0.0004,85263.0,85262.0,0.25443689]
[1743552334220,0.0004,85263.0,85262.0,0.2390831]
[1743552335418,0.0004,85263.0,85262.0,0.25085853]
[1743552336123,0.0004,85263.0,85262.0,0.26619432]
[1743552336318,0.00017597,85271.0,85270.0,0.1172721]
[1743552336518,0.0568,85276.0,85272.0,0.0586344]
[1743552336816,0.0568,85276.0,85275.0,0.1172653]
[1743552337023,0.0568,85276.0,85275.0,0.1188253]
[1743552337221,0.0592,85277.0,85276.0,0.1172639]
[1743552337419,0.0592,85277.0,85276.0,0.2264639]
[1743552337609,8e-05,85278.0,85277.0,0.1172625]
[1743552337815,0.0482,85282.0,85278.0,0.1172611]
[1743552338014,8e-05,85280.0,85278.0,0.1188211]
[1743552338318,8e-05,85280.0,85278.0,0.2151211]
[1743552339715,0.0482,85282.0,85278.0,0.2151211]
[1743552340116,0.00048,85279.0,85278.0,0.2151211]
[1743552340526,0.0004,85279.0,85278.0,0.2151211]
[1743552340828,0.00048,85279.0,85278.0,0.2151211]
[1743552344638,0.0586069,85313.0,85294.0,0.1172391]
[1743552344817,0.0604,85295.0,85294.0,0.1188791]
[1743552345540,0.0604,85295.0,85294.0,0.00164]
[1743552345541,0.1776378,85295.0,85294.0,0.00164]
[1743552345843,0.1776378,85295.0,85291.0,0.1172429]
[1743552345844,0.1172419,85292.0,85291.0,0.1172429]
[1743552346135,0.2506396,85294.0,85293.0,0.1172405]
[1743552346341,0.3806396,85294.0,85293.0,0.1188005]
[1743552346544,0.51360754,85294.0,85293.0,0.1188005]
[1743552346840,0.87440754,85294.0,85293.0,0.00156]
[1743552347046,0.117241,85293.0,85290.0,0.1172446]
[1743552347338,0.227241,85293.0,85292.0,0.1172418]
[1743552347533,0.273141,85293.0,85292.0,0.1172418]
[1743552347727,0.39728926,85293.0,85292.0,0.1172418]
[1743552347934,0.39728926,85293.0,85292.0,0.1188018]
[1743552349541,0.28004826,85293.0,85292.0,0.1188018]
[1743552350637,0.17004826,85293.0,85292.0,0.1188018]
[1743552355141,0.28004826,85293.0,85292.0,0.1188018]
[1743552357339,0.28004826,85293.0,85292.0,0.1342223]
[1743552357340,0.17004826,85293.0,85292.0,0.1342223]
[1743552357748,0.17004826,85293.0,85292.0,0.13422135]
[1743552358242,0.17004826,85293.0,85292.0,0.1188018]
[1743552358845,0.21234826,85293.0,85292.0,0.1188018]
[1743552360239,0.32958876,85293.0,85292.0,0.1188019]
[1743552360539,0.32234826,85293.0,85292.0,0.1188019]
[1743552360944,0.32234826,85293.0,85292.0,0.00156]
[1743552361144,0.43958876,85293.0,85292.0,0.00156]
[1743552361546,0.43958876,85293.0,85292.0,0.04696]
[1743552361946,0.32234826,85293.0,85292.0,0.04696]
[1743552362148,0.43958876,85293.0,85292.0,0.1642019]
[1743552362658,0.32234826,85293.0,85292.0,0.1642019]
[1743552363353,0.21234826,85293.0,85292.0,0.1642019]
[1743552363749,0.17004826,85293.0,85292.0,0.1642019]
[1743552363952,0.12414826,85293.0,85292.0,0.1642019]
[1743552364152,0.00048,85295.0,85294.0,0.1172391]
[1743552364345,0.0504,85295.0,85294.0,0.1187991]
[1743552368355,0.0504,85295.0,85294.0,0.13420421]
[1743552369469,0.0504,85295.0,85294.0,0.1187991]
[1743552370358,0.0504,85295.0,85294.0,0.13423898]
[1743552371751,0.0504,85295.0,85294.0,0.13446188]
[1743552374362,0.0504,85295.0,85294.0,0.13428605]
[1743552375764,0.0504,85295.0,85294.0,0.13428113]
[1743552376662,0.29256493,85295.0,85294.0,0.13428113]
[1743552377052,0.29256493,85295.0,85294.0,0.00156]
[1743552377253,0.56056493,85295.0,85294.0,0.00156]
[1743552377564,0.1172488,85287.0,85277.0,0.1172618]
[1743552377757,0.60912881,85287.0,85286.0,0.3523635]
[1743552378064,0.73852473,85287.0,85286.0,0.3523635]
[1743552378451,0.81162473,85287.0,85286.0,0.3523635]
[1743552378862,0.81162473,85287.0,85286.0,0.00125586]
[1743552379063,0.81162473,85287.0,85286.0,0.00017586]
[1743552386657,0.0586322,85276.0,85265.0,0.21055345]
[1743552386862,0.0586322,85276.0,85269.0,0.76948]
[1743552386863,0.1172721,85270.0,85269.0,0.76948]
[1743552387063,0.22787211,85270.0,85269.0,0.00108]
[1743552387255,0.22787211,85270.0,85265.0,0.21055345]
[1743552387256,0.1172776,85266.0,85265.0,0.21055345]
[1743552387568,0.11729,85257.0,85252.0,0.0444]
[1743552387769,0.68877,85257.0,85256.0,0.35194764]
[1743552387968,0.68877,85257.0,85251.0,0.42160643]
[1743552387969,0.0586476,85254.0,85251.0,0.42160643]
[1743552388267,0.1172969,85252.0,85251.0,0.42220643]
[1743552388465,0.2379369,85252.0,85251.0,0.42220643]
[1743552388666,0.117301,85249.0,85246.0,0.4076]
[1743552388871,0.4781038,85247.0,85246.0,0.29069372]
[1743552389075,0.5981038,85247.0,85246.0,0.29129372]
[1743552389363,0.72755986,85247.0,85246.0,0.29129372]
[1743552389567,0.76955986,85247.0,85246.0,0.29129372]
[1743552390668,0.77830154,85247.0,85246.0,0.29129372]
[1743552390976,0.77930154,85247.0,85246.0,0.29129372]
[1743552391155,0.86014154,85247.0,85246.0,0.29129372]
[1743552391663,0.86114154,85247.0,85246.0,0.29129372]
[1743552391856,0.85239986,85247.0,85246.0,0.29129372]
[1743552392259,0.69309606,85247.0,85246.0,0.40859892]
[1743552392456,0.81039986,85247.0,85246.0,0.29129372]
[1743552393261,0.81039986,85247.0,85246.0,0.0006]
[1743552394264,0.85199986,85247.0,85246.0,0.0006]
[1743552394459,0.1173065,85245.0,85244.0,0.0432]
[1743552394673,0.2081465,85245.0,85244.0,0.08594]
[1743552394975,0.33089356,85245.0,85244.0,0.2032479]
[1743552395465,0.33189356,85245.0,85244.0,0.2032479]
[1743552395774,0.33289356,85245.0,85244.0,0.2032479]
[1743552395983,0.24289356,85245.0,85244.0,0.2032479]
[1743552396175,0.12558706,85245.0,85244.0,0.2032479]
[1743552396676,0.20618706,85245.0,85244.0,0.2452479]
[1743552402782,0.56698706,85245.0,85244.0,0.2452479]
[1743552403381,0.48638706,85245.0,85244.0,0.2452479]
[1743552410190,0.12558706,85245.0,85244.0,0.2452479]
[1743552410378,0.00284,85245.0,85244.0,0.62182116]
[1743552410685,0.1052432,85256.0,85255.0,0.1172928]
[1743552410889,0.0418832,85256.0,85255.0,0.4786928]
[1743552411087,0.0410432,85256.0,85255.0,0.49436395]
[1743552411294,0.14032427,85260.0,85255.0,0.49436395]
[1743552411295,0.14032427,85260.0,85259.0,0.1172873]
[1743552411482,0.14116427,85260.0,85259.0,0.13355845]
[1743552411987,0.00084,85260.0,85259.0,0.13355845]
[1743552412188,0.17529222,85263.0,85262.0,0.1172831]
[1743552412383,0.17617223,85263.0,85262.0,0.49463425]
[1743552412581,0.17529222,85263.0,85262.0,0.49463425]
[1743552412784,0.17529222,85263.0,85262.0,0.78532797]
[1743552413078,0.17529222,85263.0,85262.0,0.82582797]
[1743552414189,0.17529222,85263.0,85262.0,0.86752797]
[1743552414382,0.17729222,85263.0,85262.0,0.86752797]
[1743552414582,0.18029222,85263.0,85262.0,0.86752797]
[1743552415784,0.18029222,85263.0,85262.0,0.86755319]
[1743552416193,0.005,85263.0,85262.0,0.86755319]
[1743552419993,0.005,85263.0,85262.0,0.86750722]
[1743552422494,0.005,85263.0,85262.0,0.85185682]
[1743552422683,0.2122818,85263.0,85262.0,0.00088]
[1743552422884,0.0586432,85260.0,85256.0,0.29069372]
[1743552423084,0.0586443,85258.0,85256.0,0.0006]
[1743552423286,0.1173024,85248.0,85247.0,0.34934532]
[1743552423581,0.70694456,85248.0,85247.0,0.29129372]
[1743552423783,0.60694456,85248.0,85247.0,0.29129372]
[1743552424085,0.71694456,85248.0,85247.0,0.29129372]
[1743552424391,0.79814456,85248.0,85247.0,0.29129372]
[1743552425089,0.79814456,85248.0,85247.0,0.40859752]
[1743552425288,0.68084216,85248.0,85247.0,0.40859752]
[1743552425488,0.68084216,85248.0,85247.0,0.40959752]
[1743552425686,0.65056216,85248.0,85247.0,0.48849752]
[1743552426093,0.65056216,85248.0,85247.0,0.48949752]
[1743552426599,0.65056216,85248.0,85247.0,0.48849752]
[1743552426791,0.65156216,85248.0,85247.0,0.48749752]
[1743552426993,0.65356216,85248.0,85247.0,0.48749752]
[1743552427682,0.65156216,85248.0,85247.0,0.48749752]
[1743552427887,0.77086456,85248.0,85247.0,0.29129372]
[1743552428184,0.77086456,85248.0,85247.0,0.40859752]
[1743552428497,0.77086456,85248.0,85247.0,0.1179038]
[1743552428700,0.76986456,85248.0,85247.0,0.1179038]
[1743552428901,0.77086456,85248.0,85247.0,0.1179038]
[1743552429101,0.65356216,85248.0,85247.0,0.1179038]
[1743552429298,0.77086456,85248.0,85247.0,0.1179038]
[1743552429989,0.76886456,85248.0,85247.0,0.1179038]
[1743552430191,0.77086456,85248.0,85247.0,0.1179038]
[1743552431403,0.41006456,85248.0,85247.0,0.1179038]
[1743552432097,0.29276216,85248.0,85247.0,0.1179038]
[1743552432292,0.17354216,85248.0,85247.0,0.1179038]
[1743552432490,0.17354216,85248.0,85247.0,0.1960038]
[1743552432691,0.04582001,85248.0,85247.0,0.1960038]
[1743552432891,0.0447,85248.0,85247.0,0.1960038]
[1743552433590,0.04482001,85248.0,85247.0,0.1960038]
[1743552434391,0.04382001,85248.0,85247.0,0.1960038]
[1743552435798,0.40568753,85248.0,85247.0,0.0006]
[1743552435995,0.1173084,85245.0,85244.0,0.0586535]
[1743552436193,0.1173084,85245.0,85238.0,0.00064513]
[1743552436194,0.0586563,85241.0,85238.0,0.00064513]
[1743552436396,0.1173148,85239.0,85238.0,0.00128513]
[1743552436592,0.2284748,85239.0,85238.0,0.00128513]
[1743552436903,0.36268351,85239.0,85238.0,0.00128513]
[1743552437102,0.44308351,85239.0,85238.0,0.00128513]
[1743552437300,0.33308351,85239.0,85238.0,0.00128513]
[1743552437495,0.44308351,85239.0,85238.0,0.00128513]
[1743552437806,0.44308351,85239.0,85238.0,0.00064513]
[1743552438807,0.44308351,85239.0,85238.0,0.00364513]
[1743552439402,0.44308351,85239.0,85238.0,0.11996133]
[1743552439403,0.33308351,85239.0,85238.0,0.11996133]
[1743552439599,0.33308351,85239.0,85238.0,0.12216133]
[1743552440403,0.33308351,85239.0,85238.0,0.12116133]
[1743552441892,0.33308351,85239.0,85238.0,0.00384513]
[1743552442502,0.43308351,85239.0,85238.0,0.00384513]
[1743552442696,0.43308351,85239.0,85238.0,0.00264513]
[1743552443506,0.43308351,85239.0,85238.0,0.00324513]
[1743552445405,0.43308351,85239.0,85238.0,0.00264513]
[1743552446406,0.43308351,85239.0,85238.0,0.11996133]
[1743552446609,0.43308351,85239.0,85238.0,0.12064133]
[1743552448910,0.43308351,85239.0,85238.0,0.00332513]
[1743552449116,0.43308351,85239.0,85238.0,0.00264513]
[1743552451814,0.57317879,85239.0,85238.0,0.00264513]
[1743552455809,0.57317879,85239.0,85226.0,0.0586662]
[1743552455810,0.1173258,85231.0,85230.0,0.0395]
[1743552456010,0.57924581,85231.0,85230.0,0.0401]
[1743552456208,0.1173368,85223.0,85222.0,0.00046936]
[1743552456505,0.66785681,85223.0,85222.0,0.00046936]
[1743552456714,0.7960338,85223.0,85222.0,0.00166936]
[1743552457519,0.8748338,85223.0,85222.0,0.00046936]
[1743552457822,0.8748338,85223.0,85222.0,0.00146936]
[1743552458319,0.8748338,85223.0,85222.0,0.00246936]
[1743552461329,0.8748338,85223.0,85222.0,0.00225129]
[1743552463124,0.8748338,85223.0,85214.0,0.00017597]
[1743552463125,0.1173478,85215.0,85214.0,0.00017597]
[1743552463422,0.60934781,85215.0,85214.0,0.00017597]
[1743552463626,0.93639973,85215.0,85206.0,0.00046945]
[1743552463813,0.6730589,85207.0,85206.0,0.00046945]
[1743552464015,0.88281891,85207.0,85206.0,0.00046945]
[1743552464326,1.02755054,85207.0,85206.0,0.00046945]
[1743552464824,1.10395054,85207.0,85206.0,0.00046945]
[1743552465015,0.90905054,85207.0,85206.0,0.00046945]
[1743552466225,0.91005054,85207.0,85206.0,0.00046945]
[1743552472822,0.87205054,85207.0,85206.0,0.00046945]
[1743552473028,0.91205054,85207.0,85206.0,0.03916945]
[1743552475024,0.91205054,85207.0,85206.0,0.03980945]
[1743552475233,0.91205054,85207.0,85206.0,0.03916945]
[1743552476520,0.87205054,85207.0,85206.0,0.03916945]
[1743552477330,0.87165054,85207.0,85206.0,0.03916945]
[1743552479028,0.87165054,85207.0,85206.0,0.03976945]
[1743552480533,0.87165054,85207.0,85206.0,0.03916945]
[1743552480926,0.87165054,85207.0,85206.0,0.04032945]
[1743552481131,0.87149054,85207.0,85206.0,0.03916945]
[1743552482123,0.87149054,85207.0,85206.0,0.03976945]
[1743552482926,0.87149054,85207.0,85206.0,0.00046945]
[1743552483130,0.91029054,85207.0,85206.0,0.00046945]
[1743552483846,1.10519054,85207.0,85206.0,0.00046945]
[1743552485726,1.16227193,85207.0,85206.0,6.307e-05]
[1743552488040,1.31974608,85207.0,85206.0,6.307e-05]
[1743552488238,0.1173699,85199.0,85191.0,0.0785]
[1743552488433,0.6093299,85199.0,85191.0,0.0785]
[1743552488741,0.73419416,85199.0,85191.0,0.0785]
[1743552488942,0.73419416,85199.0,85192.0,0.0378]
[1743552489437,0.81349416,85199.0,85192.0,0.0378]
[1743552489641,0.81349416,85199.0,85198.0,0.00117597]
[1743552490140,0.81349416,85199.0,85198.0,0.00217597]
[1743552490536,0.82211987,85199.0,85198.0,0.00217597]
[1743552490742,0.82411987,85199.0,85198.0,0.00117597]
[1743552490938,0.82411987,85199.0,85198.0,0.00017597]
[1743552491130,0.82611987,85199.0,85198.0,0.00017597]
[1743552491741,0.82611987,85199.0,85183.0,0.03712403]
[1743552491742,0.1173905,85184.0,85183.0,0.03712403]
[1743552491944,0.6872705,85184.0,85183.0,0.03712403]
[1743552492138,0.81790707,85184.0,85183.0,0.03712403]
[1743552492336,0.85850707,85184.0,85183.0,0.03712403]
[1743552493440,0.85850707,85184.0,85183.0,0.03912403]
[1743552493847,0.85850707,85184.0,85183.0,0.03712403]
[1743552494045,0.85850707,85184.0,85183.0,0.03912403]
[1743552495546,0.85850707,85184.0,85183.0,0.03712403]
[1743552498255,0.91558846,85184.0,85183.0,0.03712403]
[1743552500645,0.54967796,85184.0,85183.0,0.15451593]
[1743552500950,0.74462846,85184.0,85183.0,0.19551593]
[1743552501145,0.74462846,85184.0,85183.0,0.07812403]
[1743552501352,0.88242846,85184.0,85183.0,0.07752403]
[1743552501545,0.72534707,85184.0,85183.0,0.07752403]
[1743552501749,0.82534707,85184.0,85183.0,0.07752403]
[1743552502551,0.74778707,85184.0,85183.0,0.07752403]
[1743552502754,0.82582707,85184.0,85183.0,0.07752403]
[1743552503447,0.46502707,85184.0,85183.0,0.07752403]
[1743552503656,0.82582707,85184.0,85183.0,0.07752403]
[1743552505553,0.74778707,85184.0,85183.0,0.07752403]
[1743552505758,0.82690707,85184.0,85183.0,0.07752403]
[1743552508252,0.8839951,85184.0,85183.0,0.07752403]
[1743552510350,0.8461951,85184.0,85183.0,0.19491593]
[1743552510559,0.8461951,85184.0,85183.0,0.07752403]
[1743552510961,0.8460751,85184.0,85183.0,0.07752403]
[1743552512066,0.8864751,85184.0,85183.0,0.07752403]
[1743552513965,0.8074751,85184.0,85183.0,0.07752403]
[1743552514165,0.8863551,85184.0,85183.0,0.07752403]
[1743552514666,0.8863551,85184.0,85183.0,0.19491593]
[1743552514865,0.5496846,85184.0,85183.0,0.19491593]
[1743552515163,0.6670751,85184.0,85183.0,0.19603593]
[1743552515465,0.6670751,85184.0,85183.0,0.07864403]
[1743552515666,0.7105751,85184.0,85183.0,0.07752403]
[1743552516656,0.92105448,85184.0,85183.0,0.07752403]
[1743552516868,0.92105448,85184.0,85183.0,0.07812403]
[1743552517165,0.92105448,85184.0,85183.0,0.07752403]
[1743552517370,0.92105448,85184.0,85183.0,0.19491593]
[1743552517567,0.92105448,85184.0,85183.0,0.19551593]
[1743552520157,0.76016398,85184.0,85183.0,0.19551593]
[1743552520466,0.87755448,85184.0,85183.0,0.19551593]
[1743552521065,0.6670751,85184.0,85183.0,0.19551593]
[1743552521266,0.6670751,85184.0,85183.0,0.07812403]
[1743552521465,0.6670751,85184.0,85183.0,0.07752403]
[1743552521666,0.6670751,85184.0,85183.0,0.07812403]
[1743552521861,0.6670751,85184.0,85183.0,0.19551593]
[1743552522263,0.6670751,85184.0,85183.0,0.19491593]
[1743552522567,0.6670751,85184.0,85183.0,0.19551593]
[1743552523171,0.5496846,85184.0,85183.0,0.19551593]
[1743552523371,0.1888846,85184.0,85183.0,0.19551593]
[1743552524675,0.3062751,85184.0,85183.0,0.19551593]
[1743552525075,0.24918707,85184.0,85183.0,0.19551593]
[1743552526181,0.29298707,85184.0,85183.0,0.19551593]
[1743552527075,0.13179657,85184.0,85183.0,0.19551593]
[1743552527277,0.24918707,85184.0,85183.0,0.55631593]
[1743552527576,0.28898707,85184.0,85183.0,0.19551593]
[1743552528477,0.28898707,85184.0,85183.0,0.07812403]
[1743552528981,0.28898707,85184.0,85183.0,0.19551593]
[1743552535472,0.17159657,85184.0,85183.0,0.19551593]
[1743552536182,0.13179657,85184.0,85183.0,0.19551593]
[1743552537577,0.13175658,85184.0,85183.0,0.19551593]
[1743552537974,0.00112001,85184.0,85183.0,0.19551593]
[1743552538283,0.17571686,85187.0,85186.0,0.1173878]
[1743552538477,0.17683687,85187.0,85186.0,0.1179878]
[1743552539790,0.17683687,85187.0,85186.0,0.13086057]
[1743552539976,0.17683687,85187.0,85186.0,0.42155429]
[1743552540689,0.00112001,85187.0,85186.0,0.42155429]
[1743552540983,0.10542613,85189.0,85188.0,0.117385]
[1743552541180,0.10542613,85189.0,85188.0,0.117985]
[1743552541389,0.10654614,85189.0,85188.0,0.117985]
[1743552541576,0.10654614,85189.0,85188.0,0.158585]
[1743552542173,0.10654614,85189.0,85188.0,0.159585]
[1743552542574,0.10654614,85189.0,85188.0,0.160585]
[1743552544087,0.00112001,85189.0,85188.0,0.160585]
[1743552544491,0.04037608,85192.0,85191.0,0.1173809]
[1743552544689,0.04149609,85192.0,85191.0,0.1179809]
[1743552545086,0.04149609,85192.0,85191.0,0.1561809]
[1743552545788,0.04037608,85192.0,85191.0,0.44687462]
[1743552545983,0.04149609,85192.0,85191.0,0.44687462]
[1743552546185,0.10542613,85195.0,85194.0,0.1173768]
[1743552546485,0.10654614,85195.0,85194.0,0.1179768]
[1743552547088,0.10654614,85195.0,85194.0,0.1561768]
[1743552547584,0.10754614,85195.0,85194.0,0.1561768]
[1743552547795,0.22492154,85195.0,85194.0,0.1561768]
[1743552548289,0.22592154,85195.0,85194.0,0.1561768]
[1743552548883,0.22592154,85195.0,85194.0,0.1179768]
[1743552549589,0.26352154,85195.0,85194.0,0.1179768]
[1743552551880,0.15809541,85195.0,85194.0,0.1179768]
[1743552558082,0.15809541,85195.0,85194.0,0.1891768]
[1743552558083,0.04072001,85195.0,85194.0,0.1891768]
[1743552558392,0.15809541,85195.0,85194.0,0.1891768]
[1743552558795,0.15809541,85195.0,85194.0,0.1535768]
[1743552558997,0.15809541,85195.0,85194.0,0.0006]
[1743552559179,0.117385,85188.0,85187.0,0.0382]
[1743552559498,0.11850501,85188.0,85187.0,0.1180264]
[1743552559885,0.13001362,85188.0,85187.0,0.1180264]
[1743552560096,0.20141362,85188.0,85187.0,0.1180264]
[1743552560391,0.32785348,85188.0,85187.0,0.1180264]
[1743552560992,0.68865348,85188.0,85187.0,0.1190264]
[1743552561295,0.68865348,85188.0,85187.0,0.1183864]
[1743552561499,0.68865348,85188.0,85187.0,0.1205064]
[1743552561886,0.68865348,85188.0,85187.0,0.00312]
[1743552562186,0.68865348,85188.0,85187.0,0.002]
[1743552562591,0.67714487,85188.0,85187.0,0.1193864]
[1743552563105,0.67714487,85188.0,85187.0,0.1200664]
[1743552564288,0.68896058,85188.0,85187.0,0.002]
[1743552564497,0.78896058,85188.0,85187.0,0.002]
[1743552566291,0.68896058,85188.0,85187.0,0.00182392]
[1743552566494,0.79896058,85188.0,85187.0,0.00182392]
[1743552567583,1.03176053,85188.0,85187.0,0.00182392]
[1743552569892,0.91437553,85188.0,85187.0,0.00182392]
[1743552570096,0.39555982,85188.0,85187.0,0.11921032]
[1743552570296,0.39555982,85188.0,85187.0,0.11989032]
[1743552570687,0.39555982,85188.0,85187.0,0.19039032]
[1743552571996,0.16275987,85188.0,85187.0,0.19039032]
[1743552576397,0.03632001,85188.0,85187.0,0.19039032]
[1743552576592,0.10640817,85188.0,85187.0,0.19039032]
[1743552579190,0.22379317,85188.0,85187.0,0.19039032]
[1743552580191,0.10640817,85188.0,85187.0,0.19039032]
[1743552580797,0.14290817,85188.0,85187.0,0.19039032]
[1743552582597,0.03762001,85188.0,85187.0,0.19039032]
[1743552585700,0.15500501,85188.0,85187.0,0.19039032]
[1743552587798,0.15500501,85188.0,85187.0,0.15529032]
[1743552588100,0.28401056,85188.0,85187.0,0.15529032]
[1743552588926,0.31941056,85188.0,85187.0,0.03790392]
[1743552589105,0.31941056,85188.0,85187.0,0.15461032]
[1743552589408,0.31941056,85188.0,85187.0,0.15521032]
[1743552595306,0.31941056,85188.0,85187.0,0.00242392]
[1743552595512,0.41941056,85188.0,85187.0,0.00182392]
[1743552596715,0.31941056,85188.0,85187.0,0.00182392]
[1743552596913,0.41941056,85188.0,85187.0,0.00182392]
[1743552598309,0.49673056,85188.0,85187.0,0.00182392]
[1743552600713,0.55381956,85188.0,85187.0,0.00182392]
[1743552601216,1.27541956,85188.0,85187.0,0.00182392]
[1743552602520,0.55381956,85188.0,85187.0,0.00182392]
[1743552602821,1.27541956,85188.0,85187.0,0.00182392]
[1743552603009,1.09809956,85188.0,85187.0,0.00182392]
[1743552603204,1.17525956,85188.0,85187.0,0.00182392]
[1743552603406,0.22371456,85188.0,85187.0,0.11921032]
[1743552603611,0.22371456,85188.0,85187.0,0.22607032]
[1743552604012,0.34109956,85188.0,85187.0,0.22607032]
[1743552605313,0.22371456,85188.0,85187.0,0.22607032]
[1743552607416,0.18721456,85188.0,85187.0,0.22607032]
[1743552608022,0.30459956,85188.0,85187.0,0.22607032]
[1743552608517,0.24751056,85188.0,85187.0,0.22607032]
[1743552608912,0.28221056,85188.0,85187.0,0.22607032]
[1743552611516,0.16482556,85188.0,85187.0,0.22607032]
[1743552612926,0.13012556,85188.0,85187.0,0.22607032]
[1743552614014,0.24751056,85188.0,85187.0,0.22607032]
[1743552614613,0.13012556,85188.0,85187.0,0.22607032]
[1743552618622,0.24751056,85188.0,85187.0,0.22607032]
[1743552618815,0.24751056,85188.0,85187.0,0.10868392]
[1743552619126,0.79527056,85188.0,85187.0,0.00298392]
[1743552619321,0.79527056,85188.0,85187.0,0.00182392]
[1743552619620,0.86217056,85188.0,85187.0,0.00182392]
[1743552623224,0.50137056,85188.0,85187.0,0.00182392]
[1743552623425,1.22297056,85188.0,85187.0,0.00182392]
[1743552624035,1.28005932,85188.0,85187.0,0.00182392]
[1743552625326,1.20309932,85188.0,85187.0,0.00182392]
[1743552625529,1.28021932,85188.0,85187.0,0.00182392]
[1743552630030,1.47511932,85188.0,85187.0,0.00182392]
[1743552630430,1.47511932,85188.0,85187.0,2e-08]
[1743552631630,0.1174016,85176.0,85169.0,0.0346]
[1743552631936,0.68652161,85176.0,85169.0,0.0346]
[1743552632136,0.81624668,85176.0,85169.0,0.0346]
[1743552632632,0.85174668,85176.0,85174.0,0.11787342]
[1743552632837,0.85174668,85176.0,85175.0,0.03737608]
[1743552633430,0.85174668,85176.0,85175.0,0.03937608]
[1743552633825,0.72166668,85176.0,85175.0,0.03937608]
[1743552634027,0.89691661,85176.0,85175.0,0.03937608]
[1743552634237,0.89691661,85176.0,85175.0,0.03877608]
[1743552634836,0.89691661,85176.0,85175.0,0.03937608]
[1743552635536,0.89691661,85176.0,85175.0,0.03877608]
[1743552636529,0.89691661,85176.0,85175.0,0.03937608]
[1743552636935,0.89691661,85176.0,85175.0,0.03877608]
[1743552638738,0.72166668,85176.0,85175.0,0.03877608]
[1743552638937,0.72166668,85176.0,85175.0,0.03937608]
[1743552639132,0.72166668,85176.0,85175.0,0.03877608]
[1743552640335,0.72166668,85176.0,85175.0,0.15617898]
[1743552640636,0.72166668,85176.0,85175.0,0.15677898]
[1743552641037,0.72166668,85176.0,85175.0,0.19197898]
[1743552641640,0.72166668,85176.0,85175.0,0.07457608]
[1743552642036,0.72166668,85176.0,85175.0,0.07397608]
[1743552642236,0.72166668,85176.0,85175.0,0.07457608]
[1743552642437,0.72166668,85176.0,85175.0,0.19197898]
[1743552643751,0.36192001,85176.0,85175.0,0.19197898]
[1743552643935,0.00112001,85176.0,85175.0,0.19197898]
[1743552645037,0.24432677,85176.0,85175.0,0.19197898]
[1743552645241,0.12692517,85176.0,85175.0,0.19197898]
[1743552645445,0.00112001,85176.0,85175.0,0.19197898]
[1743552646447,0.14028735,85177.0,85176.0,0.1174016]
[1743552646644,0.14140736,85177.0,85176.0,0.1180016]
[1743552646860,0.14140736,85177.0,85176.0,0.1881016]
[1743552647757,0.14140736,85177.0,85176.0,0.1891016]
[1743552647960,0.14140736,85177.0,85176.0,0.1901016]
[1743552648553,0.14140736,85177.0,85176.0,0.5977016]
[1743552650266,0.25880756,85177.0,85176.0,0.5977016]
[1743552650463,0.00112001,85177.0,85176.0,0.5977016]
[1743552651872,0.11852021,85177.0,85176.0,0.4803]
[1743552652165,0.15152021,85177.0,85176.0,0.5977016]
[1743552652360,0.15152021,85177.0,85176.0,0.4803]
[1743552652561,0.51232021,85177.0,85176.0,0.4803]
[1743552653162,0.51232021,85177.0,85176.0,0.5977016]
[1743552653872,0.39492001,85177.0,85176.0,0.5977016]
[1743552654075,0.03412001,85177.0,85176.0,0.5977016]
[1743552654258,0.033,85177.0,85176.0,0.5977016]
[1743552654461,0.14028735,85179.0,85178.0,0.1173988]
[1743552654673,0.14140736,85179.0,85178.0,0.1179988]
[1743552655773,0.15140736,85179.0,85178.0,0.1179988]
[1743552655969,0.15140736,85179.0,85178.0,0.1189988]
[1743552656466,0.15140736,85179.0,85178.0,0.1199988]
[1743552657060,0.01112001,85179.0,85178.0,0.1199988]
[1743552657462,0.04632001,85179.0,85178.0,0.1199988]
[1743552660163,0.04632001,85179.0,85178.0,0.5275988]
[1743552660970,0.04632001,85179.0,85178.0,0.4102]